[Event "European Women Rapid-ch 2023"]
[Site "Monaco"]
[Date "2024.01.14"]
[Round "8.25"]
[White "Gvetadze, Sofio"]
[Black "Mrvova, Alena"]
[Result "1-0"]
[ECO "A31"]
[WhiteElo "2298"]
[BlackElo "2160"]
[Annotator "RC"]
[PlyCount "147"]
[EventDate "2023.12.19"]
[EventType "swiss"]
[EventCountry "MNC"]
[SourceTitle "playchess.com"]
[Source "ChessBase"]
[SourceQuality "1"]
[TimeControl "900+10"]

1. e4 {[%emt 0:00:03]} c5 {[%emt 0:00:05]} 2. Nf3 {[%emt 0:00:02]} e6 {[%emt 0:00:06]} 3. c4 {[%emt 0:00:24]} a6 {[%emt 0:00:24]} 4. Nc3 {[%emt 0:00:03]} b6 {[%emt 0:00:17]} 5. d4 {[%emt 0:00:07]} cxd4 {[%emt 0:00:01]} 6. Nxd4 {[%emt 0:00:03]} Bb7 {[%emt 0:00:02]} 7. Be3 {[%emt 0:00:06]} d6 {[%emt 0:00:19]} 8. Be2 {[%emt 0:00:04]} Nd7 {[%emt 0:00:05]} 9. O-O {[%emt 0:00:04]} Ngf6 {[%emt 0:00:03]} 10. f3 {[%emt 0:00:02]} Be7 {[%emt 0:00:08]} 11. Qd2 {[%emt 0:00:02]} O-O {[%emt 0:00:14]} 12. a4 {[%emt 0:00:48]} Qc7 {[%emt 0:00:20]} 13. a5 {[%emt 0:00:10]} bxa5 {[%emt 0:00:17]} 14. Nb3 {[%emt 0:00:02]} a4 {[%emt 0:00:29]} 15. Nxa4 {[%emt 0:00:05]} Nc5 {[%emt 0:00:04]} 16. Na5 {[%emt 0:02:10]} Bc6 {[%emt 0:01:22]} 17. Nxc6 {[%emt 0:01:05]} Qxc6 {[%emt 0:00:03]} 18. Qc2 {[%emt 0:00:53]} Rab8 {[%emt 0:00:23]} 19. Nxc5 {[%emt 0:01:12]} dxc5 {[%emt 0:00:02]} 20. e5 {[%emt 0:00:14]} Nd7 {[%emt 0:01:37]} 21. f4 {[%emt 0:00:01]} f6 {[%emt 0:00:20]} 22. Bf3 {[%emt 0:00:17]} Qb6 {[%emt 0:00:17]} 23. Qa4 {[%emt 0:00:48]} Rfd8 {[%emt 0:00:49]} 24. exf6 {[%emt 0:03:02]} Bxf6 {[%emt 0:02:29]} 25. Qxa6 {[%emt 0:02:08]} Bd4 {[%emt 0:00:08]} 26. Bxd4 {[%emt 0:00:20]} cxd4 {[%emt 0:00:01]} 27. b4 {[%emt 0:00:08]} Qxa6 {[%emt 0:01:32]} 28. Rxa6 {[%emt 0:00:01]} Rxb4 {[%emt 0:00:01]} 29. Rxe6 {[%emt 0:00:02]} Nc5 {[%emt 0:00:07]} 30. Re5 {[%emt 0:00:14]} Nd3 {[%emt 0:00:46]} 31. Bd5+ {[%emt 0:00:06]} Rxd5 {[%emt 0:00:42]} 32. cxd5 {[%emt 0:00:45]} Nxe5 {[%emt 0:00:01]} 33. fxe5 {[%emt 0:00:01]} d3 {[%emt 0:00:01]} 34. e6 {[%emt 0:01:51]} Re4 {[%emt 0:00:01]} 35. Rd1 {[%emt 0:00:05]} Kf8 {[%emt 0:00:12]} 36. Rxd3 {[%emt 0:00:12]} Ke7 {[%emt 0:00:17]} 37. Rf3 {[%emt 0:00:31]} Kd6 {[%emt 0:00:35]} 38. Rf7 {[%emt 0:00:02]} Kxd5 {[%emt 0:00:03]} 39. Rxg7 {[%emt 0:00:01]} Kxe6 {[%emt 0:00:11]} 40. Rxh7 {[%emt 0:00:02]} Re2 {[%emt 0:00:01]} 41. Rh3 {[%emt 0:00:07]} Kf5 {[%emt 0:00:03]} 42. Kf1 {[%emt 0:00:16]} Ra2 {[%emt 0:00:02]} 43. Rb3 {[%emt 0:00:08]} Kg5 {[%emt 0:00:03]} 44. Kg1 {[%emt 0:00:12]} Rc2 {[%emt 0:00:02]} 45. h3 {[%emt 0:00:05]} Kh4 {[%emt 0:00:02]} 46. Kh2 {[%emt 0:00:03]} Ra2 {[%emt 0:00:02]} 47. Rb4+ {[%emt 0:00:02]} Kg5 {[%emt 0:00:01]} 48. h4+ {[%emt 0:00:03]} Kh5 {[%emt 0:00:02]} 49. Kh3 {[%emt 0:00:02]} Ra1 {[%emt 0:00:02]} 50. g4+ {[%emt 0:00:08]} Kg6 {[%emt 0:00:02]} 51. Rb6+ {[%emt 0:00:01]} Kg7 {[%emt 0:00:01]} 52. h5 {[%emt 0:00:01]} Rh1+ {[%emt 0:00:02]} 53. Kg3 {[%emt 0:00:01]} Kh7 {[%emt 0:00:04]} 54. Kf4 {[%emt 0:00:02]} Ra1 {[%emt 0:00:06]} 55. Re6 {[%emt 0:00:09]} Ra4+ {[%emt 0:00:01]} 56. Re4 {[%emt 0:00:02]} Ra1 {[%emt 0:00:02]} 57. Kf5 {[%emt 0:00:03]} Kh6 {[%emt 0:00:01]} 58. Re6+ {[%emt 0:00:06]} Kh7 {[%emt 0:00:02]} 59. Kg5 {[%emt 0:00:11]} Ra5+ {[%emt 0:00:02]} 60. Kh4 {[%emt 0:00:02]} Ra4 {[%emt 0:00:02]} 61. Re7+ {[%emt 0:00:10]} Kh6 {[%emt 0:00:02]} 62. Re6+ {[%emt 0:00:06]} Kh7 {[%emt 0:00:01]} 63. Rf6 {[%emt 0:00:01]} Rb4 {[%emt 0:00:02]} 64. Kg5 {[%emt 0:00:02]} Rb5+ {[%emt 0:00:03]} 65. Rf5 {[%emt 0:00:01]} Rb7 {[%emt 0:00:00]} 66. h6 {[%emt 0:00:16]} Rb6 {[%emt 0:00:23]} 67. Rf7+ {[%emt 0:00:02]} Kh8 {[%emt 0:00:01]} 68. Kh5 {[%emt 0:00:07]} Ra6 {[%emt 0:00:27]} 69. g5 {[%emt 0:00:05]} Rb6 {[%emt 0:00:02]} 70. g6 {[%emt 0:00:28]} Rb5+ {[%emt 0:00:02]} 71. Kg4 {[%emt 0:00:02]} Rb8 {[%emt 0:00:01]} 72. Kg5 {[%emt 0:00:12]} Rb5+ {[%emt 0:00:01]} 73. Rf5 {[%emt 0:00:01]} Rb8 {[%emt 0:00:01]} 74. h7 {[%emt 0:00:16]} 1-0

[Event "European Women Rapid-ch 2023"]
[Site "Monaco"]
[Date "2024.01.14"]
[Round "8.26"]
[White "Dornbusch, Tatiana"]
[Black "Uta, Adeline-Ramona"]
[Result "1-0"]
[ECO "E69"]
[WhiteElo "2218"]
[BlackElo "2036"]
[Annotator "TA"]
[PlyCount "119"]
[EventDate "2023.12.19"]
[EventType "swiss"]
[EventCountry "MNC"]
[SourceTitle "playchess.com"]
[Source "ChessBase"]
[SourceQuality "1"]
[TimeControl "900+10"]

{[%evp 19,119,33,59,63,61,64,76,64,85,49,90,90,89,82,89,92,85,48,67,39,39,41,77,46,48,0,16,0,18,18,9,13,38,35,36,40,33,34,53,53,55,39,39,35,42,42,66,62,63,78,61,62,83,60,162,161,138,140,139,112,177,172,400,411,412,399,431,409,649,695,681,681,945,939,728,491,430,0,947,983,29974,29975,6027,877,5708,836,5899,5716,29974,29973,29982,29983,29984,29979,1689,0,29984,29985,29994,29967,5928,5895]} 1. d4 {[%emt 0:00:10]} Nf6 {[%emt 0:00:47]} 2. Nf3 {[%emt 0:00:00]} g6 {[%emt 0:00:03]} 3. g3 {[%emt 0:00:00]} Bg7 {[%emt 0:00:01]} 4. Bg2 {[%emt 0:00:00]} O-O {[%emt 0:00:03]} 5. c4 {[%emt 0:00:01]} d6 {[%emt 0:00:01]} 6. Nc3 {[%emt 0:00:08]} c6 {[%emt 0:00:02]} 7. O-O {[%emt 0:00:04]} Qa5 {[%emt 0:00:21]} 8. h3 {[%emt 0:00:22]} e5 {[%emt 0:00:58]} 9. e4 {[%emt 0:01:49]} Nbd7 {[%emt 0:00:24]} 10. Be3 {[%emt 0:01:33]} Re8 {[%emt 0:02:28]} 11. d5 {[%emt 0:02:10]} cxd5 {[%emt 0:01:08]} 12. cxd5 {[%emt 0:00:02]} Nc5 {[%emt 0:00:07]} 13. Nd2 {[%emt 0:01:09] White is better.} Bd7 $1 {[%emt 0:02:34]} 14. Qe2 {[%emt 0:05:17]} Na4 {[%emt 0:00:46]} 15. Nxa4 {[%emt 0:00:46]} Qxa4 {[%emt 0:00:22]} 16. b3 {[%emt 0:00:15] Prevents b5} Bb5 {[%emt 0:02:55]} 17. bxa4 {[%emt 0:00:02]} Bxe2 {[%emt 0:00:01]} 18. Rfb1 {[%emt 0:00:01]} b6 {[%emt 0:00:27]} 19. Bf1 {[%emt 0:00:21]} Bxf1 {[%emt 0:00:16]} 20. Kxf1 {[%emt 0:00:01]} Nd7 {[%emt 0:00:49]} 21. Nc4 {[%emt 0:00:24]} Bf8 {[%emt 0:00:07]} 22. Ke2 {[%emt 0:00:43]} (22. Rc1 $14) 22... Rec8 {[%emt 0:00:25]} 23. Kd3 {[%emt 0:00:23]} Nc5+ {[%emt 0:00:05]} 24. Bxc5 {[%emt 0:00:06]} Rxc5 {[%emt 0:00:48]} 25. Rb5 {[%emt 0:00:24]} Rac8 {[%emt 0:00:09]} 26. Rxc5 {[%emt 0:00:07]} Rxc5 $14 {[%emt 0:00:07][%mdl 4096] Endgame. KRB-KRN} 27. Rb1 {[%emt 0:00:02]} f5 {[%emt 0:01:11] And now ...fxe4+ would win.} 28. f3 {[%emt 0:00:07][%cal Bf2f3,Bf3e4][%mdl 32]} fxe4+ {[%emt 0:00:02]} 29. fxe4 {[%emt 0:00:01]} Kf7 {[%emt 0:00:10]} 30. Rf1+ {[%emt 0:01:43]} Kg7 {[%emt 0:00:37]} 31. g4 {[%emt 0:00:26]} Be7 {[%emt 0:00:19]} 32. Rf2 {[%emt 0:00:05]} h5 {[%emt 0:00:11]} 33. gxh5 {[%emt 0:00:04]} gxh5 {[%emt 0:00:01]} 34. Rf5 {[%emt 0:00:10]} Kg6 {[%emt 0:00:09][%cal Oc5d5] White must now prevent ...Rxd5+!} 35. Rf1 {[%emt 0:00:11]} Rc8 {[%emt 0:00:25] White leaves nothing to chance now.} 36. Rg1+ {[%emt 0:00:03]} Kh6 {[%emt 0:00:14] [#]} (36... Kf7 $14) 37. Ne3 $1 $18 {[%emt 0:00:03] Threatens to win with Nf5+.} Kh7 {[%emt 0:00:17]} 38. Nf5 {[%emt 0:00:01]} Bf8 {[%emt 0:00:01] Inhibits Rg7+.} 39. Rg5 {[%emt 0:00:09] White is more active.} Rc1 {[%emt 0:00:11]} (39... Rc5 $16 40. Rxh5+ Kg8) 40. Rxh5+ {[%emt 0:00:03]} Kg6 $2 {[%emt 0:00:08]} (40... Kg8 {might work better.} 41. h4 Rd1+ 42. Kc4 Rb1 43. Rg5+ Kh8) 41. Rh8 {[%emt 0:00:02]} Kf7 {[%emt 0:00:02]} 42. Rh7+ {[%emt 0:00:03]} Kg8 {[%emt 0:00:02]} 43. Rxa7 {[%emt 0:00:04] aiming for a5.} Rh1 {[%emt 0:00:05]} (43... Rf1 $142 44. Rb7 Rd1+ 45. Kc4 Re1) 44. h4 {[%emt 0:00:02]} Rd1+ {[%emt 0:00:07]} 45. Ke3 {[%emt 0:00:15]} Re1+ {[%emt 0:00:28]} 46. Kf3 {[%emt 0:00:01]} Rf1+ {[%emt 0:00:01]} 47. Ke2 {[%emt 0:00:10]} Ra1 {[%emt 0:00:03]} 48. Kf3 $2 {[%emt 0:00:55]} (48. Ra6 $18) 48... Rxa2 $2 {[%emt 0:00:04][%mdl 8192]} (48... Rf1+ $11 49. Kg4 Rg1+ 50. Kh5 Re1) 49. Kg4 {[%emt 0:00:02]} b5 {[%emt 0:00:49]} 50. a5 {[%emt 0:00:07]} b4 {[%emt 0:00:05]} 51. Rb7 {[%emt 0:01:43]} (51. Kg5 $142 b3 52. Kg6) 51... Rxa5 {[%emt 0:00:03]} 52. Rxb4 {[%emt 0:00:01]} (52. Kg5 $142 Ra4 53. Kg6) 52... Ra1 {[%emt 0:00:04]} 53. Kg5 {[%emt 0:00:19] Intending Kf6 and mate.} Kf7 {[%emt 0:01:26]} 54. Rb7+ {[%emt 0:00:02]} Kg8 {[%emt 0:00:02]} 55. Kf6 {[%emt 0:00:11]} Ra4 {[%emt 0:00:20]} 56. Ng3 {[%emt 0:00:30]} Ra3 {[%emt 0:00:24]} 57. Nf5 {[%emt 0:00:06]} (57. Nh5 $18 Bh6 58. Kg6) 57... Ra4 {[%emt 0:00:00]} 58. Rb8 {[%emt 0:00:32]} Ra7 {[%emt 0:00:12]} 59. Nxd6 {[%emt 0:00:08]} Ra6 {[%emt 0:00:08] [#]} 60. Kxe5 $1 {[%emt 0:00:02] Weighted Error Value: White=0.44/Black=0.59.  Loses game:     	---       	Black=1      Mistake:       	White=1     	Black=4      Inaccurate:     	White=4     	Black=3      OK:         	White=13    	Black=14     Best:        	White=5     	---        Strong:       	---       	Black=1} 1-0

[Event "European Women Rapid-ch 2023"]
[Site "Monaco"]
[Date "2024.01.14"]
[Round "8.27"]
[White "Exler, Veronika"]
[Black "Froewis, Annika"]
[Result "1/2-1/2"]
[ECO "C68"]
[WhiteElo "2157"]
[BlackElo "2133"]
[Annotator "TA"]
[PlyCount "20"]
[EventDate "2023.12.19"]
[EventType "swiss"]
[EventCountry "MNC"]
[SourceTitle "playchess.com"]
[Source "ChessBase"]
[SourceQuality "1"]
[TimeControl "900+10"]

{[%evp 15,20,-10,1,-25,-29,-36,-21]} 1. e4 {[%emt 0:00:01]} e5 {[%emt 0:00:03]} 2. Nf3 {[%emt 0:00:01]} Nc6 {[%emt 0:00:02]} 3. Bb5 {[%emt 0:00:01]} a6 {[%emt 0:00:05]} 4. Bxc6 {[%emt 0:00:02]} dxc6 {[%emt 0:00:02]} 5. d4 {[%emt 0:00:11]} exd4 {[%emt 0:00:17]} 6. Qxd4 {[%emt 0:00:19]} Qxd4 {[%emt 0:00:10]} 7. Nxd4 {[%emt 0:00:02]} Bd7 {[%emt 0:00:13]} 8. Be3 {[%emt 0:00:22]} O-O-O {[%emt 0:00:27]} 9. Nd2 {[%emt 0:00:32]} Ne7 {[%emt 0:00:31]} 10. O-O-O {[%emt 0:00:25]} Ng6 {[%emt 0:00:31] Not much happened in this game.   OK:         	---       	Black=2} 1/2-1/2

[Event "European Women Rapid-ch 2023"]
[Site "Monaco"]
[Date "2024.01.14"]
[Round "9.1"]
[White "Kosteniuk, Alexandra"]
[Black "Stefanova, Antoaneta"]
[Result "1/2-1/2"]
[ECO "C50"]
[WhiteElo "2501"]
[BlackElo "2431"]
[Annotator "RC"]
[PlyCount "111"]
[EventDate "2023.12.19"]
[EventType "swiss"]
[EventCountry "MNC"]
[SourceTitle "playchess.com"]
[Source "ChessBase"]
[SourceQuality "1"]
[TimeControl "900+10"]

1. e4 {[%emt 0:00:02]} e5 {[%emt 0:00:01]} 2. Nf3 {[%emt 0:00:02]} Nc6 {[%emt 0:00:01]} 3. Bc4 {[%emt 0:00:01]} Bc5 {[%emt 0:00:02]} 4. d3 {[%emt 0:00:01]} Nf6 {[%emt 0:00:05]} 5. Nc3 {[%emt 0:00:02]} a6 {[%emt 0:00:03]} 6. O-O {[%emt 0:00:04]} d6 {[%emt 0:00:02]} 7. a4 {[%emt 0:00:12]} O-O {[%emt 0:01:06]} 8. Be3 {[%emt 0:00:30]} Bxe3 {[%emt 0:00:29]} 9. fxe3 {[%emt 0:00:02]} Be6 {[%emt 0:00:02]} 10. Nd2 {[%emt 0:00:14]} Bxc4 {[%emt 0:00:40]} 11. Nxc4 {[%emt 0:00:03]} d5 {[%emt 0:00:05]} 12. exd5 {[%emt 0:01:24]} Nxd5 {[%emt 0:00:03]} 13. Qg4 {[%emt 0:00:16]} Nxc3 14. bxc3 {[%emt 0:00:02]} b5 {[%emt 0:02:16]} 15. Nd2 {[%emt 0:00:06]} Qc8 {[%emt 0:03:58]} 16. Qf3 {[%emt 0:00:02]} Ne7 {[%emt 0:01:50]} 17. Nb3 {[%emt 0:01:17]} Rb8 {[%emt 0:00:32]} 18. axb5 {[%emt 0:00:21]} axb5 {[%emt 0:00:02]} 19. Ra7 {[%emt 0:00:03]} Rb6 {[%emt 0:01:12]} 20. Rfa1 {[%emt 0:00:34]} Rc6 {[%emt 0:01:25]} 21. Qe4 {[%emt 0:02:58]} Qe6 {[%emt 0:00:55]} 22. Ra8 {[%emt 0:00:07]} g6 {[%emt 0:00:04]} 23. Qb4 {[%emt 0:00:19]} Qd6 {[%emt 0:01:32]} 24. Qxb5 {[%emt 0:05:48]} Rxc3 {[%emt 0:00:03]} 25. Rxf8+ {[%emt 0:02:14]} Kxf8 {[%emt 0:00:01]} 26. Ra8+ {[%emt 0:00:32]} Kg7 {[%emt 0:00:01]} 27. Qe8 {[%emt 0:00:41]} Rxc2 {[%emt 0:02:01]} 28. Qf8+ {[%emt 0:00:20]} Kf6 {[%emt 0:00:04]} 29. Qh8+ {[%emt 0:00:34]} Ke6 {[%emt 0:00:15]} 30. d4 {[%emt 0:00:06]} Qd5 {[%emt 0:01:02]} 31. Nc5+ {[%emt 0:00:54]} Rxc5 {[%emt 0:00:03]} 32. dxc5 {[%emt 0:00:00]} Qd1+ {[%emt 0:00:09]} 33. Kf2 {[%emt 0:00:02]} Qd2+ {[%emt 0:00:06]} 34. Kf1 {[%emt 0:00:07]} Qd1+ {[%emt 0:00:09]} 35. Kf2 {[%emt 0:00:00]} Qd2+ {[%emt 0:00:01]} 36. Kf1 {[%emt 0:00:01]} Qxe3 {[%emt 0:00:26]} 37. Qe8 {[%emt 0:00:45]} Qc1+ {[%emt 0:00:06]} 38. Ke2 {[%emt 0:00:01]} Qc4+ {[%emt 0:00:09]} 39. Kf3 {[%emt 0:00:28]} Qc3+ {[%emt 0:00:19]} 40. Ke2 {[%emt 0:00:02]} Qc4+ {[%emt 0:00:02]} 41. Kf3 {[%emt 0:00:01]} Qxc5 {[%emt 0:00:08]} 42. Rd8 {[%emt 0:00:32]} Qc6+ {[%emt 0:00:15]} 43. Qxc6+ {[%emt 0:00:02]} Nxc6 {[%emt 0:00:01]} 44. Rc8 {[%emt 0:00:01]} Nd4+ {[%emt 0:00:05]} 45. Kg4 {[%emt 0:00:01]} c6 {[%emt 0:00:05]} 46. h4 {[%emt 0:00:14]} h6 {[%emt 0:00:09]} 47. Re8+ {[%emt 0:00:14]} Kf6 {[%emt 0:00:13]} 48. h5 {[%emt 0:00:10]} Ne6 {[%emt 0:00:09]} 49. hxg6 {[%emt 0:00:27]} fxg6 {[%emt 0:00:02]} 50. Kf3 {[%emt 0:00:04]} Kf5 {[%emt 0:00:20]} 51. g4+ {[%emt 0:00:04]} Kf6 {[%emt 0:00:01]} 52. Ke4 {[%emt 0:00:01]} Ng5+ {[%emt 0:00:03]} 53. Ke3 {[%emt 0:00:01]} Ne6 {[%emt 0:00:07]} 54. Ke4 {[%emt 0:00:02]} Ng5+ {[%emt 0:00:02]} 55. Ke3 {[%emt 0:00:00]} Ne6 {[%emt 0:00:37]} 56. Ke4 {[%emt 0:00:06]} 1/2-1/2

[Event "European Women Rapid-ch 2023"]
[Site "Monaco"]
[Date "2024.01.14"]
[Round "9.2"]
[White "Osmak, Yuliia"]
[Black "Paehtz, Elisabeth"]
[Result "1/2-1/2"]
[ECO "B30"]
[WhiteElo "2450"]
[BlackElo "2461"]
[Annotator "RC"]
[PlyCount "137"]
[EventDate "2023.12.19"]
[EventType "swiss"]
[EventCountry "MNC"]
[SourceTitle "playchess.com"]
[Source "ChessBase"]
[SourceQuality "1"]
[TimeControl "900+10"]

1. e4 {[%emt 0:00:01]} c5 {[%emt 0:00:01]} 2. Nf3 {[%emt 0:00:01]} Nc6 {[%emt 0:00:02]} 3. Bb5 {[%emt 0:00:02]} e6 {[%emt 0:00:01]} 4. O-O {[%emt 0:00:04]} Nge7 {[%emt 0:00:01]} 5. d4 {[%emt 0:00:03]} cxd4 {[%emt 0:00:02]} 6. Nxd4 {[%emt 0:00:02]} Ng6 {[%emt 0:00:05]} 7. c3 {[%emt 0:00:05]} Qb6 {[%emt 0:00:31]} 8. a4 {[%emt 0:01:12]} a6 {[%emt 0:00:14]} 9. Be2 {[%emt 0:00:35]} Be7 {[%emt 0:00:33]} 10. Na3 {[%emt 0:00:08]} Nxd4 {[%emt 0:00:51]} 11. cxd4 {[%emt 0:00:19]} d5 {[%emt 0:00:02]} 12. e5 {[%emt 0:00:45]} Bd7 {[%emt 0:00:27]} 13. Nc2 {[%emt 0:00:19]} Qb3 {[%emt 0:01:53]} 14. Ne3 {[%emt 0:02:09]} Qxd1 {[%emt 0:00:01]} 15. Rxd1 {[%emt 0:00:18]} Rc8 {[%emt 0:00:17]} 16. Bd2 {[%emt 0:00:18]} f6 {[%emt 0:00:04]} 17. exf6 {[%emt 0:02:19]} gxf6 {[%emt 0:00:01]} 18. g3 {[%emt 0:00:03]} Kf7 {[%emt 0:00:34]} 19. f4 {[%emt 0:00:13]} f5 {[%emt 0:00:14]} 20. Kf2 {[%emt 0:01:04]} Bf6 {[%emt 0:00:10]} 21. Bb4 {[%emt 0:00:18]} Ne7 {[%emt 0:00:32]} 22. Bc5 {[%emt 0:01:03]} h5 {[%emt 0:01:30]} 23. h4 {[%emt 0:00:00]} a5 {[%emt 0:01:08]} 24. Bb6 {[%emt 0:00:32]} Ra8 {[%emt 0:00:30]} 25. b3 {[%emt 0:00:25]} Nc8 {[%emt 0:00:38]} 26. Bc7 {[%emt 0:00:35]} Ke7 {[%emt 0:00:19]} 27. Bf3 {[%emt 0:00:52]} Bc6 {[%emt 0:00:25]} 28. Rac1 {[%emt 0:00:51]} Nd6 {[%emt 0:00:17]} 29. Rc5 {[%emt 0:00:06]} Kd7 {[%emt 0:00:25]} 30. Bxa5 {[%emt 0:02:13]} b5 {[%emt 0:00:35]} 31. axb5 {[%emt 0:03:12]} Nxb5 {[%emt 0:00:01]} 32. Bc3 {[%emt 0:00:07]} Be7 {[%emt 0:00:32]} 33. Bb4 {[%emt 0:00:11]} Bxc5 {[%emt 0:00:20]} 34. dxc5 {[%emt 0:00:04]} Ra2+ {[%emt 0:00:19]} 35. Rd2 {[%emt 0:00:05]} Rxd2+ {[%emt 0:00:29]} 36. Bxd2 {[%emt 0:00:01]} Kc7 {[%emt 0:02:54]} 37. Ba5+ {[%emt 0:00:10]} Kb7 {[%emt 0:00:02]} 38. Nc2 {[%emt 0:00:08]} Ra8 {[%emt 0:00:34]} 39. b4 {[%emt 0:00:01]} Rh8 {[%emt 0:00:23]} 40. Be2 {[%emt 0:00:14]} Nc3 {[%emt 0:00:34]} 41. Nd4 {[%emt 0:00:32]} Ne4+ {[%emt 0:00:03]} 42. Kg2 {[%emt 0:00:18]} Bd7 {[%emt 0:00:25]} 43. Bd3 {[%emt 0:00:10]} Ra8 {[%emt 0:01:53]} 44. Bxe4 {[%emt 0:00:01]} dxe4 {[%emt 0:00:01]} 45. Kf2 {[%emt 0:00:01]} Bc6 {[%emt 0:00:53]} 46. Ke3 {[%emt 0:00:04]} Bd5 {[%emt 0:00:03]} 47. Kf2 {[%emt 0:00:18]} Ra6 {[%emt 0:00:46]} 48. Ke3 {[%emt 0:00:01]} Ra8 {[%emt 0:00:00]} 49. Kf2 {[%emt 0:00:01]} Rc8 {[%emt 0:00:23]} 50. Bb6 {[%emt 0:00:08]} Ra8 {[%emt 0:00:05]} 51. Ba5 {[%emt 0:00:01]} Rc8 {[%emt 0:00:01]} 52. Bb6 {[%emt 0:00:01]} Rg8 {[%emt 0:00:25]} 53. b5 {[%emt 0:00:12]} e3+ {[%emt 0:00:02]} 54. Kxe3 {[%emt 0:00:16]} Rxg3+ {[%emt 0:00:01]} 55. Kf2 {[%emt 0:00:54]} Rg4 {[%emt 0:00:03]} 56. Bd8 {[%emt 0:00:06]} Rxf4+ {[%emt 0:00:03]} 57. Ke3 {[%emt 0:00:00]} Re4+ {[%emt 0:00:06]} 58. Kd3 {[%emt 0:00:01]} Kc8 {[%emt 0:00:26]} 59. Bg5 {[%emt 0:00:11]} f4 {[%emt 0:00:21]} 60. c6 {[%emt 0:00:04]} f3 {[%emt 0:00:06]} 61. Nxf3 {[%emt 0:00:11]} Rb4 {[%emt 0:00:11]} 62. Nd4 {[%emt 0:00:10]} e5 {[%emt 0:00:06]} 63. Nf5 {[%emt 0:00:05]} Be6 {[%emt 0:00:32]} 64. Nd6+ {[%emt 0:00:14]} Kc7 {[%emt 0:00:03]} 65. Be7 {[%emt 0:00:04]} Rd4+ {[%emt 0:00:06]} 66. Ke3 {[%emt 0:00:24]} Rxd6 {[%emt 0:00:18]} 67. b6+ {[%emt 0:00:05]} Kxc6 {[%emt 0:00:02]} 68. b7 {[%emt 0:00:03]} Kxb7 {[%emt 0:00:16]} 69. Bxd6 {[%emt 0:00:01]} 1/2-1/2

[Event "European Women Rapid-ch 2023"]
[Site "Monaco"]
[Date "2024.01.14"]
[Round "9.4"]
[White "Agrest, Inna"]
[Black "Salimova, Nurgyul"]
[Result "1-0"]
[ECO "B12"]
[WhiteElo "2287"]
[BlackElo "2426"]
[Annotator "RC"]
[PlyCount "99"]
[EventDate "2023.12.19"]
[EventType "swiss"]
[EventCountry "MNC"]
[SourceTitle "playchess.com"]
[Source "ChessBase"]
[SourceQuality "1"]
[TimeControl "900+10"]

1. e4 {[%emt 0:00:02]} c6 {[%emt 0:00:00]} 2. d4 {[%emt 0:00:02]} d5 {[%emt 0:00:02]} 3. f3 {[%emt 0:00:01]} e6 {[%emt 0:00:04]} 4. Nc3 {[%emt 0:00:02]} Bb4 {[%emt 0:00:11]} 5. Bd2 {[%emt 0:00:02]} Ne7 {[%emt 0:00:55]} 6. Bd3 {[%emt 0:00:10]} Nd7 {[%emt 0:00:22]} 7. a3 {[%emt 0:00:20]} Ba5 {[%emt 0:00:10]} 8. f4 {[%emt 0:01:23]} O-O {[%emt 0:06:55]} 9. Nf3 {[%emt 0:00:07]} c5 {[%emt 0:00:51]} 10. e5 {[%emt 0:02:01]} h6 {[%emt 0:01:03]} 11. b4 {[%emt 0:00:41]} cxb4 {[%emt 0:01:20]} 12. Nb5 {[%emt 0:01:12]} Nc6 {[%emt 0:01:04]} 13. O-O {[%emt 0:01:01]} Bb6 {[%emt 0:00:21]} 14. axb4 {[%emt 0:01:26]} f6 {[%emt 0:00:15]} 15. Kh1 {[%emt 0:00:39]} a6 {[%emt 0:00:22]} 16. c3 {[%emt 0:00:09]} f5 {[%emt 0:00:27]} 17. Be1 {[%emt 0:00:48]} Rb8 {[%emt 0:01:33]} 18. Nd6 {[%emt 0:00:39]} Qc7 {[%emt 0:00:58]} 19. Rc1 {[%emt 0:00:21]} Ba7 {[%emt 0:00:34]} 20. c4 {[%emt 0:04:17]} dxc4 {[%emt 0:00:04]} 21. Bxc4 {[%emt 0:00:02]} Nb6 {[%emt 0:00:13]} 22. Bb3 {[%emt 0:00:49]} Qe7 {[%emt 0:00:12]} 23. Nh4 {[%emt 0:00:17]} Nd5 {[%emt 0:00:33]} 24. Ng6 {[%emt 0:00:16]} Qd8 {[%emt 0:00:11]} 25. Nxf8 {[%emt 0:00:50]} Qxf8 {[%emt 0:00:11]} 26. Bxd5 {[%emt 0:00:19]} exd5 {[%emt 0:00:01]} 27. b5 {[%emt 0:00:11]} axb5 {[%emt 0:00:14]} 28. Nxb5 {[%emt 0:00:13]} Bb6 {[%emt 0:00:01]} 29. Qb3 {[%emt 0:00:14]} Be6 {[%emt 0:00:01]} 30. Bf2 {[%emt 0:00:18]} Na5 {[%emt 0:00:10]} 31. Qb1 {[%emt 0:00:21]} Nc4 {[%emt 0:00:34]} 32. Nd6 {[%emt 0:00:09]} Nxd6 {[%emt 0:00:06]} 33. Qxb6 {[%emt 0:00:01]} Ne4 {[%emt 0:00:14]} 34. Qxe6+ {[%emt 0:00:02]} Kh8 {[%emt 0:00:02]} 35. Qxd5 {[%emt 0:00:06]} Rc8 {[%emt 0:00:02]} 36. Bg1 {[%emt 0:00:34]} Rd8 {[%emt 0:00:17]} 37. Qxb7 {[%emt 0:00:02]} Qe8 {[%emt 0:00:06]} 38. Bf2 {[%emt 0:00:28]} Qh5 {[%emt 0:00:15]} 39. Kg1 {[%emt 0:00:11]} Kh7 {[%emt 0:00:30]} 40. d5 {[%emt 0:00:18]} Qe2 {[%emt 0:00:10]} 41. e6 {[%emt 0:00:20]} Qd2 {[%emt 0:00:11]} 42. Rcd1 {[%emt 0:00:09]} Qc2 {[%emt 0:00:08]} 43. Bd4 {[%emt 0:00:05]} Rg8 {[%emt 0:00:02]} 44. e7 {[%emt 0:00:15]} Qa4 {[%emt 0:00:05]} 45. Qc6 {[%emt 0:00:13]} Qb4 {[%emt 0:00:24]} 46. e8=Q {[%emt 0:00:06]} Rxe8 {[%emt 0:00:02]} 47. Qxe8 {[%emt 0:00:01]} Nd2 {[%emt 0:00:01]} 48. Rxd2 {[%emt 0:00:11]} Qxd2 {[%emt 0:00:02]} 49. Qe5 {[%emt 0:00:04]} Qxg2+ {[%emt 0:00:02]} 50. Kxg2 {[%emt 0:00:01]} 1-0